fUSD/lending_fUSD_20240607
["ID","MTS","AMOUNT","RATE_DAILY","PERIOD"]
[328731855,1717739446649,-155.19883756,0.00029519,2]
[328731856,1717739446659,-154.24763111,0.00029531,2]
[328731857,1717739446670,-150.0,0.00029535,2]
[328731858,1717739446679,-150.0,0.00029542,2]
[328731859,1717739446688,-150.0,0.00029543,2]
[328731860,1717739446698,-300.0,0.00029548,2]
[328731861,1717739446707,-3712.40017565,0.00029549,2]
[328731862,1717739446718,-1500.0,0.00029549,2]
[328731863,1717739446727,-150.0,0.0002955,2]
[328731864,1717739446736,-150.0,0.00029551,2]
[328731865,1717739446745,-1500.0,0.0002956,2]
[328731866,1717739446755,-207.37527327,0.00029561,2]
[328731867,1717739446764,-150.0,0.00029561,2]
[328731868,1717739446773,-287.70008425,0.00029564,4]
[328731870,1717739446783,-155.01240203,0.00029564,2]
[328731872,1717739446792,-150.0,0.00029564,2]
[328731873,1717739446802,-150.0,0.00029564,2]
[328731874,1717739446811,-150.0,0.00029564,2]
[328731875,1717739446820,-150.0,0.00029564,2]
[328731876,1717739446829,-150.0,0.00029564,2]
[328731877,1717739446839,-150.0,0.00029564,2]
[328731878,1717739446848,-150.0,0.00029564,2]
[328731879,1717739446857,-150.0,0.00029564,2]
[328731880,1717739446866,-150.0,0.00029564,2]
[328731881,1717739446875,-199.06263,0.00029564,2]
[328731882,1717739446884,-150.0,0.00029568,2]
[328731883,1717739446893,-158.17888295,0.0002957,2]
[328731884,1717739446903,-150.0,0.00029572,2]
[328731885,1717739446912,-150.0,0.00029573,2]
[328731886,1717739446921,-166.66666667,0.00029576,2]
[328731887,1717739446930,-151.12643296,0.00029578,2]
[328731888,1717739446939,-207.37527327,0.00029583,2]
[328731889,1717739446949,-150.0,0.00029589,2]
[328731890,1717739446958,-983.53,0.00029589,4]
[328731891,1717739446968,-983.53,0.00029589,4]
[328731892,1717739446978,-983.53,0.00029589,4]
[328731893,1717739446987,-983.53,0.00029589,4]
[328731894,1717739446996,-155.01240203,0.00029589,2]
[328731895,1717739447005,-500.0,0.00029589,4]
[328731896,1717739447016,-500.0,0.00029589,4]
[328731897,1717739447026,-500.0,0.00029589,4]
[328731898,1717739447035,-500.0,0.00029589,4]
[328731899,1717739447045,-150.0,0.00029592,2]
[328731900,1717739447054,-500.0,0.000296,2]
[328731901,1717739447064,-300.0,0.000296,10]
[328731902,1717739447074,-150.0,0.00029604,2]
[328731903,1717739447083,-5000.0,0.00029609,2]
[328731904,1717739447093,-150.0,0.0002961,2]
[328731905,1717739447103,-150.0,0.00029618,2]
[328731906,1717739447113,-3712.40017565,0.00029619,2]
[328731907,1717739447122,-150.0,0.0002962,2]
[328731908,1717739447132,-1500.0,0.00029622,2]
[328731909,1717739447141,-207.37527327,0.00029623,2]
[328731910,1717739447150,-500.0,0.00029623,2]
[328731911,1717739447160,-500.0,0.00029624,2]
[328731912,1717739447169,-200.0,0.00029624,2]
[328731913,1717739447179,-5000.0,0.00029628,2]
[328731914,1717739447189,-150.0,0.00029634,2]
[328731915,1717739447199,-150.0,0.00029637,2]
[328731916,1717739447209,-150.0,0.0002964,2]
[328731917,1717739447219,-150.0,0.00029647,2]
[328731918,1717739447229,-1500.0,0.00029654,2]
[328731919,1717739447239,-153.43834955,0.00029659,2]
[328731920,1717739447249,-150.0,0.00029668,2]
[328731921,1717739447258,-335.84481344,0.0002968,2]
[328731922,1717739447268,-3712.40017565,0.00029689,2]
[328731923,1717739447277,-500.0,0.000297,2]
[328731924,1717739447287,-300.0,0.000297,10]
[328731925,1717739447296,-1025.58252144,0.000297,2]
[328731926,1717739447306,-150.0,0.00029705,2]
[328731927,1717739447316,-150.0,0.00029708,2]
[328731928,1717739447326,-150.0,0.00029714,2]
[328731929,1717739447335,-491.70252112,0.0002972,2]
[328731930,1717739447345,-335.84481344,0.00029721,2]
[328731931,1717739447354,-150.0,0.00029724,2]
[328731932,1717739447364,-186.81834437,0.00029732,2]
[328731933,1717739447374,-1500.0,0.00029741,2]
[328731934,1717739447383,-1000.0,0.00029747,2]
[328731935,1717739447392,-392.25402,0.0002975,2]
[328731936,1717739447402,-186.81834437,0.00029753,2]
[328731937,1717739447412,-150.0,0.00029755,2]
[328731938,1717739447421,-150.0,0.00029756,2]
[328731939,1717739447431,-150.0,0.00029756,2]
[328731940,1717739447440,-300.0,0.00029757,2]
[328731941,1717739447449,-3712.40017565,0.00029759,2]
[328731942,1717739447459,-150.77468739,0.00029763,2]
[328731943,1717739447469,-944.92591499,0.00029763,2]
[328731944,1717739447478,-424.87,0.00029764,2]
[328731945,1717739447488,-150.0,0.00029769,2]
[328731946,1717739447497,-150.0,0.0002977,2]
[328731947,1717739447506,-158.17888295,0.00029774,2]
[328731948,1717739447516,-158.17888295,0.00029775,2]
[328731949,1717739447525,-150.0,0.00029778,2]
[328731950,1717739447535,-151.0,0.00029782,2]
[328731951,1717739447544,-150.0,0.00029785,2]
[328731952,1717739447554,-153.63,0.0002979,2]
[328731953,1717739447563,-269.58,0.0002979,2]
[328731954,1717739447572,-500.0,0.00029799,4]
[328731955,1717739447581,-160.0,0.000298,2]
[328731956,1717739447590,-345.0,0.000298,2]
[328731957,1717739447599,-500.0,0.000298,2]
[328731958,1717739447608,-116543.76583538,0.000298,2]
[328731959,1717739447767,-150.0,0.00027973,2]
[328731960,1717739447776,-150.0,0.00028607,2]
[328731961,1717739447784,-150.0,0.00028678,2]
[328731962,1717739447794,-150.0,0.00029262,2]
[328731963,1717739447803,-150.0,0.00029672,2]
[328731964,1717739447812,-4927.08823603,0.000298,2]
[328731965,1717739447824,-4321.29096193,0.000298,2]
[328731966,1717739447835,-637.64527553,0.000298,2]
[328731967,1717739447844,-1000.0,0.000298,2]
[328731968,1717739447854,-1275.0,0.000298,10]
[328731969,1717739447863,-151.0,0.000298,7]
[328731970,1717739447873,-151.0,0.000298,7]
[328731971,1717739447883,-224.0,0.000298,2]
[328731972,1717739447892,-151.0,0.000298,7]
[328731973,1717739447902,-151.0,0.000298,7]
[328731974,1717739447912,-1000.76,0.000298,2]
[328731975,1717739447921,-925.093237,0.000298,7]
[328731976,1717739447931,-151.0,0.000298,7]
[328731977,1717739447941,-925.093237,0.000298,7]
[328731978,1717739447950,-151.0,0.000298,7]
[328731979,1717739447960,-151.0,0.000298,7]
[328731980,1717739447970,-305.8,0.000298,2]
[328731981,1717739447979,-254.93329,0.000298,7]
[328731982,1717739447988,-164.38543,0.000298,7]
[328731983,1717739447997,-150.0,0.000298,6]
[328731984,1717739448007,-254.93329,0.000298,7]
[328731985,1717739448016,-151.0,0.000298,7]
[328731986,1717739448025,-151.0,0.000298,7]
[328731987,1717739448034,-151.0,0.000298,7]
[328731988,1717739448044,-191.780175,0.000298,7]
[328731989,1717739448054,-151.0,0.000298,7]
[328731990,1717739448064,-151.0,0.000298,7]
[328731991,1717739448073,-354.0,0.000298,2]
[328731992,1717739448083,-186.81834437,0.00029814,2]
[328731993,1717739448093,-153.43834955,0.00029815,2]
[328731994,1717739448103,-113.24975598,0.00029822,2]
[328731995,1717739448116,-36.75024402,0.00029822,2]
[328731996,1717739448126,-150.0,0.00029828,2]
[328731997,1717739448135,-186.81834437,0.00029829,2]
[328731998,1717739448144,-1255.27768131,0.0002983,2]
[328731999,1717739448516,-150.0,0.00028008,2]
[328732000,1717739448525,-150.0,0.00028033,2]
[328732001,1717739448535,-150.0,0.00028052,2]
[328732002,1717739448544,-150.0,0.0002806,2]
[328732003,1717739448553,-150.0,0.00028061,2]
[328732004,1717739448562,-150.0,0.00028082,2]
[328732005,1717739448571,-150.0,0.00028122,2]
[328732006,1717739448580,-150.0,0.00028202,2]
[328732007,1717739448590,-150.0,0.0002823,2]
[328732008,1717739448600,-150.0,0.0002825,2]
[328732009,1717739448609,-150.0,0.00028281,2]
[328732010,1717739448618,-150.0,0.0002832,2]
[328732011,1717739448632,-150.0,0.00028431,2]
[328732012,1717739448641,-150.0,0.00028444,2]
[328732013,1717739448650,-150.0,0.00028482,2]
[328732014,1717739448659,-150.0,0.0002852,2]
[328732015,1717739448669,-150.0,0.00028534,2]
[328732016,1717739448678,-150.0,0.00028548,2]
[328732017,1717739448687,-150.0,0.00028552,2]
[328732018,1717739448697,-150.0,0.00028595,2]
[328732019,1717739448706,-150.0,0.00028696,2]
[328732020,1717739448716,-150.0,0.00028718,2]
[328732021,1717739448724,-150.0,0.00028762,2]
[328732022,1717739448734,-150.0,0.00028853,2]
[328732023,1717739448743,-150.0,0.00028854,2]
[328732024,1717739448752,-150.0,0.0002889,2]
[328732025,1717739448762,-150.0,0.00028985,2]
[328732026,1717739448771,-150.0,0.00029241,2]
[328732027,1717739448780,-150.0,0.00029265,2]
[328732028,1717739448789,-150.0,0.00029407,2]
[328732029,1717739448798,-150.0,0.00029413,2]
[328732030,1717739448808,-150.0,0.00029414,2]
[328732031,1717739448817,-150.0,0.00029445,2]
[328732032,1717739448826,-150.0,0.00029447,2]
[328732033,1717739448835,-150.0,0.00029456,2]
[328732034,1717739448845,-150.0,0.00029462,2]
[328732035,1717739448854,-150.0,0.00029698,2]
[328732036,1717739448863,-150.0,0.00029763,2]
[328732037,1717739448873,-150.0,0.00029763,2]
[328732038,1717739448884,-150.0,0.00029804,2]
[328732039,1717739448893,-2457.12249434,0.0002983,2]
[328732040,1717739448902,-150.0,0.00029831,2]
[328732041,1717739448912,-150.77468738,0.00029832,2]
[328732042,1717739448921,-944.92591499,0.00029832,2]
[328732043,1717739448930,-150.5,0.00029833,15]
[328732044,1717739448939,-150.0,0.00029843,2]
[328732045,1717739448949,-150.5,0.00029843,15]
[328732046,1717739448958,-186.81834437,0.00029845,2]
[328732047,1717739448967,-1522.01479127,0.00029848,2]
[328732048,1717739448976,-191.7331056,0.00029849,2]
[328732049,1717739448985,-9622.4149479,0.00029849,2]
[328732050,1717739448994,-493.8403039,0.00029849,2]
[328732051,1717739449004,-150.0,0.00029849,2]
[328732052,1717739449013,-150.5,0.00029853,15]
[328732053,1717739449022,-2918.82544638,0.0002986,2]
[328732054,1717739449031,-158.94995359,0.00029861,2]
[328732055,1717739449041,-4166.39963549,0.00029861,2]
[328732056,1717739449050,-3776.24785904,0.00029861,2]
[328732057,1717739449061,-473.12237669,0.00029861,2]
[328732058,1717739449071,-200.0,0.00029861,2]
[328732059,1717739449081,-736.13179394,0.00029862,2]
[328732060,1717739449090,-983.53,0.00029862,4]
[328732061,1717739449100,-983.53,0.00029862,4]
[328732062,1717739449109,-983.53,0.00029862,4]
[328732063,1717739449119,-983.53,0.00029862,4]
[328732064,1717739449128,-983.53,0.00029862,4]
[328732065,1717739449137,-983.53,0.00029862,4]
[328732066,1717739449147,-983.53,0.00029862,4]
[328732067,1717739449157,-983.53,0.00029862,4]
[328732068,1717739449167,-983.53,0.00029862,4]
[328732069,1717739449176,-983.53,0.00029862,4]
[328732070,1717739449186,-983.53,0.00029862,4]
[328732071,1717739449195,-983.53,0.00029862,4]
[328732072,1717739449204,-983.53,0.00029862,4]
[328732073,1717739449214,-983.53,0.00029862,4]
[328732074,1717739449224,-983.53,0.00029862,4]
[328732075,1717739449233,-983.53,0.00029862,4]
[328732076,1717739449243,-983.53,0.00029862,4]
[328732077,1717739449252,-983.53,0.00029862,4]
[328732078,1717739449261,-983.53,0.00029862,4]
[328732079,1717739449271,-983.58073954,0.00029862,4]
[328732080,1717739449281,-4265.55759867,0.00029863,13]
[328732081,1717739449290,-179.04739428,0.00029863,5]
[328732082,1717739449299,-358.20152403,0.00029863,2]
[328732083,1717739449309,-500.0,0.00029863,2]
[328732084,1717739449319,-518.14026105,0.00029863,2]
[328732085,1717739449328,-736.18346013,0.00029863,2]
[328732086,1717739449338,-156.73632345,0.00029863,4]
[328732087,1717739449347,-156.06307796,0.00029863,4]
[328732088,1717739449357,-312.88266507,0.00029863,4]
[328732089,1717739449366,-510.81346688,0.00029863,4]
[328732090,1717739449375,-500.0,0.00029863,4]
[328732091,1717739449385,-500.0,0.00029863,4]
[328732092,1717739449395,-500.0,0.00029863,4]
[328732093,1717739449404,-500.0,0.00029863,4]
[328732094,1717739449414,-500.0,0.00029863,4]
[328732095,1717739449423,-500.0,0.00029863,4]
[328732096,1717739449432,-509.99234397,0.00029863,4]
[328732097,1717739449442,-500.0,0.00029863,4]
[328732098,1717739449451,-500.0,0.00029863,4]
[328732099,1717739449460,-500.0,0.00029863,4]
[328732100,1717739449470,-515.88111183,0.00029863,4]
[328732101,1717739449479,-500.0,0.00029863,4]
[328732102,1717739449488,-500.0,0.00029863,4]
[328732103,1717739449498,-500.0,0.00029863,4]
[328732104,1717739449508,-500.0,0.00029863,4]
[328732105,1717739449517,-500.0,0.00029863,4]
[328732106,1717739449526,-500.0,0.00029863,4]
[328732107,1717739449536,-500.0,0.00029863,4]
[328732108,1717739449545,-198.11718035,0.00029863,4]
[328732109,1717739449554,-500.0,0.00029863,4]
[328732110,1717739449564,-500.0,0.00029863,4]
[328732111,1717739449573,-500.0,0.00029863,4]
[328732112,1717739449582,-500.0,0.00029863,4]
[328732113,1717739449592,-500.0,0.00029863,4]
[328732114,1717739449601,-500.0,0.00029863,4]
[328732115,1717739449610,-500.0,0.00029863,4]
[328732116,1717739449626,-500.0,0.00029863,4]
[328732117,1717739449635,-500.0,0.00029863,4]
[328732118,1717739449645,-345.80892081,0.00029863,4]
[328732119,1717739449654,-337.77026414,0.00029863,4]
[328732120,1717739449663,-500.0,0.00029863,4]
[328732121,1717739449675,-544.31815774,0.00029863,4]
[328732122,1717739449685,-531.30462918,0.00029863,4]
[328732123,1717739449695,-255.76430325,0.00029863,4]
[328732124,1717739449704,-568.64142668,0.00029863,4]
[328732125,1717739449713,-555.74996415,0.00029863,4]
[328732126,1717739449723,-507.07115474,0.00029863,4]
[328732127,1717739449732,-500.0,0.00029863,4]
[328732128,1717739449741,-500.0,0.00029863,4]
[328732129,1717739449751,-500.0,0.00029863,4]
[328732130,1717739449760,-500.0,0.00029863,4]
[328732131,1717739449770,-500.0,0.00029863,4]
[328732132,1717739449779,-573.68032739,0.00029863,4]
[328732133,1717739449788,-500.0,0.00029863,4]
[328732134,1717739449797,-500.0,0.00029863,4]
[328732135,1717739449806,-500.0,0.00029863,4]
[328732136,1717739449815,-500.0,0.00029863,4]
[328732137,1717739449825,-500.0,0.00029863,4]
[328732138,1717739449834,-500.0,0.00029863,4]
[328732139,1717739449843,-516.89817571,0.00029863,4]
[328732140,1717739449852,-540.88412533,0.00029863,4]
[328732141,1717739449862,-500.0,0.00029863,4]
[328732142,1717739449871,-187.19434987,0.00029863,4]
[328732143,1717739449880,-510.7123974,0.00029863,4]
[328732144,1717739449889,-500.0,0.00029863,4]
[328732145,1717739449898,-500.0,0.00029863,4]
[328732146,1717739449908,-650.62,0.00029863,4]
[328732147,1717739449918,-650.62,0.00029863,4]
[328732148,1717739449928,-650.62,0.00029863,4]
[328732149,1717739449937,-650.62,0.00029863,4]
[328732150,1717739449946,-506.10423746,0.00029863,4]
[328732151,1717739449955,-650.62,0.00029863,4]
[328732152,1717739449965,-650.62,0.00029863,4]
[328732153,1717739449974,-650.62,0.00029863,4]
[328732154,1717739449983,-650.62,0.00029863,4]
[328732155,1717739449992,-56.91376943,0.00029863,4]
[328732156,1717739450027,-593.70623057,0.00029863,4]
[328732157,1717739450036,-650.62,0.00029863,4]
[328732158,1717739450046,-539.42376943,0.00029863,4]
[328732162,1717739724075,596.54,0.00025,30]
[328732188,1717740632416,-226.6238354,0.000201,2]
[328732189,1717740632426,-364.12731579,0.00024383,2]
[328732190,1717740632438,-329.21,0.00024384,2]
[328732191,1717740632448,-27.60835385,0.00025,2]
[328732192,1717740632460,-1222.39164615,0.00025,2]
[328732193,1717740632470,-1046.71514559,0.00025,2]
[328732194,1717740632481,-446.79515573,0.00025,2]
[328732195,1717740632491,-150.0,0.00025,2]
[328732196,1717740632500,-150.0,0.00025,2]
[328732197,1717740632510,-150.0,0.00025,2]
[328732198,1717740632520,-150.0,0.00025,2]
[328732199,1717740632530,-150.0,0.00025,2]
[328732200,1717740632539,-157.76144498,0.00025,2]
[328732201,1717740632549,-1120.95192421,0.00025195,2]
[328732202,1717740632578,-67.08400315,0.00025195,2]
[328732203,1717740632588,-297.10413537,0.00025484,2]
[328732204,1717740632599,-1087.10900317,0.00025484,2]
[328732205,1717740632611,-3597.80686146,0.00025484,2]
[328732206,1717740632621,-4906.69,0.00025662,2]
[328732207,1717740632631,-500.0,0.00025939,2]
[328732208,1717740632640,-500.0,0.00025939,2]
[328732209,1717740632651,-500.0,0.00025939,2]
[328732210,1717740632660,-531.26493981,0.00025939,2]
[328732211,1717740632670,-163.57052226,0.00026309,2]
[328732212,1717740632683,-155.07947774,0.00026309,2]
[328732213,1717740632692,-622.0,0.000269,3]
[328732214,1717740632701,-1300.0,0.00027,2]
[328732215,1717740632711,-214.22052241,0.00027035,2]
[328732216,1717740632723,-285.77947759,0.00027035,2]
[328732217,1717740632734,-914.4430448,0.000271,2]
[328732218,1717740632753,-2085.5569552,0.000271,2]
[328732219,1717740632763,-750.0,0.000271,2]
[328732220,1717740632772,-196.05,0.00027903,2]
[328732221,1717740632783,-206.3,0.00027903,2]
[328732222,1717740632793,-1000.0,0.00027925,2]
[328732223,1717740632803,-437.70829612,0.00027928,2]
[328732224,1717740632813,-500.0,0.00028131,2]
[328732225,1717740632822,-250.0,0.00028163,2]
[328732226,1717740632831,-250.0,0.00028186,2]
[328732227,1717740632841,-250.0,0.00028214,2]
[328732228,1717740632851,-845.7,0.00028214,2]
[328732229,1717740632862,-150.0,0.00028432,4]
[328732230,1717740632872,-318.65,0.00028573,2]
[328732231,1717740632882,-1526.00906179,0.00028798,2]
[328732232,1717740632894,-1948.15041126,0.00028798,2]
[328732233,1717740632906,-8309.72952695,0.00028798,2]
[328732234,1717740632916,-1085.51034434,0.0002899,2]
[328732235,1717740632927,-265.97843345,0.00028999,2]
[328732236,1717740632937,-1350.0,0.00029,2]
[328732237,1717740632946,-1376.46961613,0.00029,2]
[328732238,1717740632958,-627.85298596,0.00029,2]
[328732240,1717740632989,-664.03948097,0.00029,2]
[328732242,1717740633000,-1521.76221221,0.00029,2]
[328732244,1717740633013,-4702.66594059,0.00029,2]
[328732251,1717740638272,-256.55452482,0.00029,2]
[328732252,1717740638789,-5677.76096612,0.00029,2]
[328732260,1717740641210,-389.72999925,0.00029,2]
[328732261,1717740642386,-495.93344488,0.00029,2]
[328732262,1717740642398,-1146.06,0.00029,2]
[328732263,1717740642524,-6131.08753642,0.00029,2]
[328732264,1717740642533,-1399.19849821,0.0002912,2]
[328732265,1717740642545,-3600.80150179,0.0002912,2]
[328732266,1717740642555,-500.0,0.00029227,2]
[328732267,1717740642564,-166.66666667,0.0002937,2]
[328732268,1717740642573,-152.22235468,0.00029379,2]
[328732269,1717740642584,-150.0,0.000294,2]
[328732270,1717740642594,-480.41964162,0.0002943,2]
[328732271,1717740642606,-190.11493832,0.00029435,2]
[328732272,1717740642615,-157.26422373,0.00029436,2]
[328732273,1717740642625,-153.43834955,0.00029442,2]
[328732274,1717740642634,-10000.0,0.00029453,2]
[328732275,1717740642643,-290.31496262,0.00029476,2]
[328732276,1717740642653,-155.37140393,0.00029493,2]
[328732277,1717740642663,-190.11493832,0.00029507,2]
[328732278,1717740642672,-190.11493832,0.00029509,2]
[328732279,1717740642681,-155.19883756,0.00029512,2]
[328732280,1717740642691,-290.31496262,0.00029542,2]
[328732281,1717740642700,-480.41964162,0.0002956,2]
[328732282,1717740642710,-157.26422373,0.00029568,2]
[328732283,1717740642719,-39.54323464,0.00029568,2]
[328732284,1717740642731,-114.47466925,0.00029568,2]
[328732285,1717740642742,-480.41964162,0.00029577,2]
[328732286,1717740642751,-67.81203829,0.00029588,2]
[328732287,1717740642762,-82.18796171,0.00029588,2]
[328732289,1717740642771,-150.0,0.0002959,2]
[328732291,1717740642780,-150.0,0.0002959,2]
[328732293,1717740642790,-150.0,0.00029591,2]
[328732294,1717740642799,-158.17888295,0.00029593,2]
[328732295,1717740642809,-150.0,0.0002961,2]
[328732296,1717740642821,-150.0,0.00029613,2]
[328732297,1717740642831,-150.0,0.00029616,2]
[328732298,1717740642840,-150.0,0.00029622,2]
[328732299,1717740642850,-500.0,0.00029623,2]
[328732300,1717740642859,-500.0,0.00029624,2]
[328732301,1717740642868,-150.0,0.00029626,2]
[328732302,1717740642878,-150.0,0.00029626,2]
[328732303,1717740642887,-150.0,0.00029626,2]
[328732304,1717740642897,-150.0,0.00029628,2]
[328732305,1717740642907,-150.0,0.00029631,2]
[328732306,1717740642916,-150.0,0.00029634,2]
[328732307,1717740642926,-150.0,0.00029638,2]
[328732308,1717740642936,-150.0,0.00029639,2]
[328732309,1717740642946,-150.0,0.00029641,2]
[328732310,1717740642956,-150.0,0.00029643,2]
[328732311,1717740642966,-150.0,0.00029643,2]
[328732312,1717740642975,-158.17888295,0.00029643,2]
[328732313,1717740642984,-150.0,0.00029645,2]
[328732314,1717740642997,-150.0,0.00029645,2]
[328732315,1717740643006,-150.0,0.00029651,2]
[328732316,1717740643016,-150.0,0.00029652,2]
[328732317,1717740643026,-150.0,0.00029652,2]
[328732318,1717740643036,-150.0,0.00029657,2]
[328732319,1717740643046,-822.86,0.00029657,10]
[328732320,1717740643055,-150.0,0.00029659,2]
[328732321,1717740643064,-150.0,0.00029659,2]
[328732322,1717740643074,-155.37140393,0.00029659,2]
[328732323,1717740643083,-257.773,0.00029662,2]
[328732325,1717740643092,-3753.1223,0.00029662,2]
[328732326,1717740643102,-150.0,0.00029662,2]
[328732327,1717740643114,-150.0,0.00029662,2]
[328732328,1717740643127,-492.3617,0.00029663,2]
[328732329,1717740643136,-211.4368,0.00029663,2]
[328732330,1717740643147,-290.31496262,0.00029665,2]
[328732331,1717740643157,-150.0,0.00029667,2]
[328732332,1717740643166,-150.0,0.0002967,2]
[328732333,1717740643176,-150.0,0.00029671,2]
[328732334,1717740643185,-150.0,0.00029671,2]
[328732335,1717740643196,-150.0,0.00029679,2]
[328732336,1717740643205,-150.0,0.00029679,2]
[328732337,1717740643215,-1500.0,0.0002968,2]
[328732338,1717740643224,-152.22235468,0.0002968,2]
[328732340,1717740643233,-150.0,0.00029682,2]
[328732342,1717740643243,-150.0,0.00029688,2]
[328732344,1717740643252,-150.0,0.00029693,2]
[328732346,1717740643261,-150.0,0.00029699,2]
[328732348,1717740643270,-290.31496262,0.00029701,2]
[328732349,1717740643279,-150.0,0.00029707,2]
[328732350,1717740643289,-150.0,0.0002971,2]
[328732351,1717740643297,-290.31496262,0.00029711,2]
[328732352,1717740643307,-155.0,0.00029712,2]
[328732353,1717740643316,-150.0,0.00029712,2]
[328732354,1717740643325,-150.0,0.00029714,2]
[328732355,1717740643334,-150.0,0.00029715,2]
[328732356,1717740643343,-150.0,0.00029717,2]
[328732357,1717740643352,-190.11493832,0.00029721,2]
[328732358,1717740643362,-150.0,0.00029723,2]
[328732359,1717740643372,-5000.0,0.00029727,2]
[328732360,1717740643381,-150.0,0.00029728,2]
[328732361,1717740643390,-169.1813528,0.00029728,2]
[328732362,1717740643399,-150.0,0.0002973,2]
[328732363,1717740643408,-150.79930594,0.0002973,2]
[328732364,1717740643418,-150.0,0.00029731,2]
[328732365,1717740643428,-150.0,0.00029731,2]
[328732366,1717740643437,-150.0,0.00029735,2]
[328732367,1717740643446,-150.0,0.00029735,2]
[328732368,1717740643456,-150.0,0.0002974,2]
[328732369,1717740643465,-150.0,0.00029743,2]
[328732370,1717740643475,-190.11493832,0.00029743,2]
[328732371,1717740643484,-150.0,0.00029744,2]
[328732372,1717740643494,-150.0,0.00029749,2]
[328732373,1717740643505,-150.0,0.00029749,2]
[328732374,1717740643514,-2659.05939477,0.0002975,15]
[328732375,1717740643524,-706.32980856,0.0002975,15]
[328732376,1717740643533,-150.0,0.00029754,2]
[328732377,1717740643543,-480.41964162,0.00029756,2]
[328732378,1717740643552,-150.0,0.00029757,2]
[328732379,1717740643561,-150.0,0.00029758,2]
[328732380,1717740643571,-150.0,0.00029759,2]
[328732381,1717740643580,-150.0,0.0002976,2]
[328732382,1717740643590,-150.0,0.0002976,2]
[328732383,1717740643599,-14085.687,0.00029762,2]
[328732384,1717740643608,-3419.4029,0.00029762,2]
[328732385,1717740643617,-1000.0,0.00029762,2]
[328732386,1717740643626,-1000.0,0.00029762,2]
[328732387,1717740643636,-2500.0,0.00029762,2]
[328732388,1717740643646,-150.0,0.00029762,2]
[328732389,1717740643655,-187.28935894,0.00029762,2]
[328732390,1717740643664,-7500.0,0.00029763,2]
[328732391,1717740643674,-347.34022585,0.00029763,2]
[328732392,1717740643682,-330.79304989,0.00029763,2]
[328732393,1717740643692,-314.97530501,0.00029763,2]
[328732394,1717740643702,-77.30164028,0.00029767,15]
[328732395,1717740643714,-1660.79179,0.00029767,15]
[328732396,1717740643725,-453.8784,0.00029767,15]
[328732397,1717740643736,-467.08756446,0.00029767,15]
[328732398,1717740643748,-568.73070556,0.00029767,15]
[328732402,1717740646089,-150.0,0.0002959,2]
[328732404,1717740646099,-150.0,0.00029591,2]
[328732405,1717740646108,-150.0,0.00029602,2]
[328732406,1717740646121,-150.0,0.00029603,2]
[328732407,1717740646131,-150.0,0.00029609,2]
[328732408,1717740646140,-150.0,0.00029609,2]
[328732409,1717740646151,-150.0,0.00029615,2]
[328732410,1717740646160,-150.0,0.00029615,2]
[328732411,1717740646171,-150.0,0.00029616,2]
[328732412,1717740646180,-150.0,0.00029617,2]
[328732413,1717740646190,-150.0,0.00029621,2]